Body Name,Body Unit,Service Label,Service Code,Organisation Unit,Expenditure,Calc Payment Date,Transaction Number,Net Payment ,Supplier Name,Supplier ID 
North West Leicestershire District Council ,31UH,ENOT,Street Management,Environment Transport,Vehicle Parts,13/06/2012,1237057,"139,086.00",Dennis Eagle Limited,A000522,"166,903.20","27,817.20",,PD
North West Leicestershire District Council ,31UH,ENOT,Street Management,Environment Transport,Vehicle Parts,13/06/2012,1237601,"139,086.00",Dennis Eagle Limited,A000522,"166,903.20","27,817.20",,PD
North West Leicestershire District Council ,31UH,LCM,Leisure & Culture,Leisure & Cult Mangt,Grants,31/05/2012,1237007,"28,737.40",South and West Leicestershire,A037854,"28,737.40",0.00,,PD
North West Leicestershire District Council ,31UH,ENOT,Street Management,Environment Transport,Fuel ,06/06/2012,1237349,"20,194.20",Pace Petroleum Ltd,A034942,"24,233.04","4,038.84",,PD
North West Leicestershire District Council ,31UH,ENOT,Street Management,Environment Transport,Fuel ,20/06/2012,1238178,"20,061.19",Pace Petroleum Ltd,A034942,"24,073.43","4,012.24",,PD
North West Leicestershire District Council ,31UH,EES,Environmental Health,Environmental Services,Grant payment,20/06/2012,1238222,"14,847.80",J Rennocks & Son Ltd,A027781,"14,847.80",0.00,,PD
North West Leicestershire District Council ,31UH,ICT,Information Technology,ICT Services,IT - equipment,27/06/2012,1237011,"14,405.00",Esri (Uk) Ltd,A016303,"17,286.00","2,881.00",,PD
North West Leicestershire District Council ,31UH,FINPLA,Finance,Financial Planning,Training,20/06/2012,1238448,"13,450.00",Hinckley & Bosworth Borough Council,A000770,"13,450.00",0.00,,PD
North West Leicestershire District Council ,31UH,LDLS,Legal & Democratic,Legal Services,Shared Service/ Leisure Service Project,13/06/2012,1237794,"13,250.00",Charnwood Borough Council,A010659,"15,900.00","2,650.00",,PD
North West Leicestershire District Council ,31UH,NACCS,Neighbourhoods & Communities,N & C Community Safety,Grant,27/06/2012,1238800,"13,000.00",Leicestershire County Counc,A000956,"13,000.00",0.00,,PD
North West Leicestershire District Council ,31UH,CULTYP,Leisure & Culture,Cultural Services Children & YoungPeople,Training,20/06/2012,1238116,"12,950.00",The Mighty Creatives,A039092,"12,950.00",0.00,,PD
North West Leicestershire District Council ,31UH,ICT,Information Technology,ICT Services,IT equipment,27/06/2012,1238731,"12,480.00","DSG Retail Limited, Credit Control",A028617,"14,976.00","2,496.00",,PD
North West Leicestershire District Council ,31UH,ENOWM,Street Management,Environment Waste Management,Waste Disposal - Recyclable containers,31/05/2012,1237020,"11,998.80",Straight Plc,A024906,"14,398.56","2,399.76",,PD
North West Leicestershire District Council ,31UH,EXCH,Finance,Exchequer Services,Recruitment - Agency Broker,13/06/2012,1237680,"11,902.70",Comensura Limited,A036958,"14,283.21","2,380.51",,PD
North West Leicestershire District Council ,31UH,EXCH,Finance,Exchequer Services,Recruitment - Agency Broker,06/06/2012,1237610,"11,599.27",Comensura Limited,A036958,"13,919.09","2,319.82",,PD
North West Leicestershire District Council ,31UH,EXCH,Finance,Exchequer Services,Recruitment - Agency Broker,27/06/2012,1238468,"11,134.98",Comensura Limited,A036958,"13,362.00","2,227.02",,PD
North West Leicestershire District Council ,31UH,HRAHRM,Housing Repairs,HRA Housing Repairs & Maintenance,Building Services,13/06/2012,1237806,"10,077.95",J Tomlinson Ltd,A033342,"12,093.54","2,015.59",,PD
North West Leicestershire District Council ,31UH,HRAPBS,Housing,HRA Performance & Business Support,Electricty Charges,06/06/2012,1237431,"10,036.72",British Gas Business,A035745,"10,538.56",501.84,,PD
North West Leicestershire District Council ,31UH,ENOWM,Street Management,Environment Waste Management,Consultancy Fees ,13/06/2012,1237634,"10,000.00",Leicestershire County Council,A027423,"10,000.00",0.00,,PD
North West Leicestershire District Council ,31UH,ENOWM,Street Management,Environment Waste Management,Waste Disposal - Recyclable containers,31/05/2012,1236944,"9,817.20",Straight Plc,A024906,"11,780.64","1,963.44",,PD
North West Leicestershire District Council ,31UH,ICT,Information Technology,ICT Services,IT - software services,27/06/2012,1238718,"9,800.88",Phoenix Software Limited,A001298,"11,761.06","1,960.18",,PD
North West Leicestershire District Council ,31UH,EXCH,Finance,Exchequer Services,Electricity - Supply for contract 4,27/06/2012,1238759,"9,533.43",British Gas Business,A034733,"10,561.11","1,027.68",,PD
North West Leicestershire District Council ,31UH,EXCH,Finance,Exchequer Services,Recruitment - Agency Broker,20/06/2012,1238038,"9,422.85",Comensura Limited,A036958,"11,307.41","1,884.56",,PD
North West Leicestershire District Council ,31UH,FINPLA,Finance,Financial Planning,Subscriptions,20/06/2012,1238453,"8,552.50",Audit Commission,A000110,"10,263.00","1,710.50",,PD
North West Leicestershire District Council ,31UH,CULTYP,Leisure & Culture,Cultural Services Children & YoungPeople,Charity Services - Voluntary services,06/06/2012,1237323,"8,000.00",MRC Community Action,A001208,"8,000.00",0.00,,PD
North West Leicestershire District Council ,31UH,EXCH,Finance,Exchequer Services,Recruitment - Agency Broker,06/06/2012,1237609,"7,929.01",Comensura Limited,A036958,"9,514.87","1,585.86",,PD
North West Leicestershire District Council ,31UH,ECCTV,Planning & Development,Environment - Town Centre/CCTV,Rental agreement,27/06/2012,1238726,"7,215.77",BT Redcare,A033730,"8,658.92","1,443.15",,PD
North West Leicestershire District Council ,31UH,FINPLA,Finance,Financial Planning,Charity Payment,20/06/2012,1238106,"6,618.70",LOROS,A037920,"6,618.70",0.00,,PD
North West Leicestershire District Council ,31UH,ENOP,Street Management,Environment Parks,Leisure Inspectors,27/06/2012,1238532,"6,584.00",Public Sector Software Ltd,A029902,"7,900.80","1,316.80",,PD
North West Leicestershire District Council ,31UH,HRAOPS,Housing,HRA Older Persons Service,Training,31/05/2012,1237061,"6,508.04",Hinckley & Bosworth Borough Council,A000770,"7,809.64","1,301.60",,PD
North West Leicestershire District Council ,31UH,HRAHRM,Housing Repairs,HRA Housing Repairs & Maintenance,Gas & Electricity - Boiler replacement,27/06/2012,1238855,"6,012.52",Lakers UK,A031787,"7,215.02","1,202.50",,PD
North West Leicestershire District Council ,31UH,HRAHRM,Housing Repairs,HRA Housing Repairs & Maintenance,Gas & Electricity - Boiler replacement,31/05/2012,1237124,"5,969.45",Lakers UK,A031787,"7,163.34","1,193.89",,PD
North West Leicestershire District Council ,31UH,EXCH,Finance,Exchequer Services,Photocopiers and consumables,20/06/2012,1238111,"5,902.92",The Danwood Group Ltd,A001301,"7,083.50","1,180.58",,PD
North West Leicestershire District Council ,31UH,ENOP,Street Management,Environment Parks,Horticulture - Plants,20/06/2012,1238246,"5,888.02",Crosby's,A032105,"7,065.62","1,177.60",,PD
North West Leicestershire District Council ,31UH,EXCH,Finance,Exchequer Services,Telecoms - Mobile,26/06/2012,1238696,"5,582.40",Vodafone Limited,A001861,"6,698.88","1,116.48",,PD
North West Leicestershire District Council ,31UH,CULTYP,Leisure & Culture,Cultural Services Children & YoungPeople,education,06/06/2012,1237322,"5,512.00",Centre for Fun and Families Ltd,A036769,"5,512.00",0.00,,PD
North West Leicestershire District Council ,31UH,EES,Environmental Health,Environmental Services,Plumbing & heating systems,27/06/2012,1238733,"5,500.00",Rudkin & Herbert,A024387,"5,500.00",0.00,,PD
North West Leicestershire District Council ,31UH,ECCTV,Planning & Development,Environment - Town Centre/CCTV,Security - CCTV secure internet provided transmission & ongoing maintenance,27/06/2012,1239015,"5,004.00",Fluidata,A036404,"6,004.80","1,000.80",,PD
North West Leicestershire District Council ,31UH,ICT,Information Technology,ICT Services,IT - ICT Security Services,13/06/2012,1237671,"5,000.00",Sec-1,A036989,"6,000.00","1,000.00",,PD
North West Leicestershire District Council ,31UH,AUDIT,Legal & Democratic,Audit Services,Professional services,27/06/2012,1234053,"5,000.00",Leicestershire County Council,A002062,"6,000.00","1,000.00",,PD
North West Leicestershire District Council ,31UH,LCM,Leisure & Culture,Leisure & Cult Mangt,Social Work - Home visiting scheme,31/05/2012,1236991,"4,905.00",Homestart (N.W. Leics),A000780,"4,905.00",0.00,,PD
North West Leicestershire District Council ,31UH,HLC,Leisure Centres,Hermitage Leisure Centre,Cleaning & Hygiene Services,13/06/2012,1237782,"4,808.99",Phs Group Ltd,A009237,"5,770.79",961.80,,PD
North West Leicestershire District Council ,31UH,CULTEV,Leisure & Culture,Cultural Services Arts & Events,Grant,27/06/2012,1238744,"4,750.00",Ibstock Community College,A027508,"4,750.00",0.00,,PD
North West Leicestershire District Council ,31UH,HRAHRM,Housing Repairs,HRA Housing Repairs & Maintenance,Termination Fee,20/06/2012,1238321,"4,731.19",FMC Finance Limited,A036517,"5,677.43",946.24,,PD
North West Leicestershire District Council ,31UH,HLC,Leisure Centres,Hermitage Leisure Centre,#N/A,06/06/2012,1237337,"4,580.00",ENER.G Combined Power Ltd,A034390,"5,496.00",916.00,,PD
North West Leicestershire District Council ,31UH,NACCS,Neighbourhoods & Communities,N & C Community Safety,Parish precepts,31/05/2012,1236932,"4,524.16",Charnwood Borough Council,A000323,"5,428.99",904.83,,PD
North West Leicestershire District Council ,31UH,ICT,Information Technology,ICT Services,IT - Telephone and computing,20/06/2012,1238262,"4,296.05",Virgin Media Business,A008908,"5,155.26",859.21,,PD
North West Leicestershire District Council ,31UH,ECCTV,Planning & Development,Environment - Town Centre/CCTV,Security - Provide Monitoring Services in respect of CCTV,20/06/2012,1238057,"3,923.00",Premier Security Services (Midlands) Limited,A038132,"4,707.60",784.60,,PD
North West Leicestershire District Council ,31UH,HR,Corporate Director,Human Resources,Leasing - Vehicles,31/05/2012,1236928,"3,837.11",Arnold Clark Vehicle Management,A035549,"4,233.60",396.49,,PD
North West Leicestershire District Council ,31UH,ICT,Information Technology,ICT Services,Photocopiers and consumables,20/06/2012,1238245,"3,798.00",The Danwood Group Ltd,A001301,"4,557.60",759.60,,PD
North West Leicestershire District Council ,31UH,HRAHRM,Housing Repairs,HRA Housing Repairs & Maintenance,Gas & Electricity - Boiler replacement,13/06/2012,1237745,"3,763.65",Lakers UK,A031787,"4,516.38",752.73,,PD
North West Leicestershire District Council ,31UH,PROPFM,Property Services,Property Facilities Management,Energy - Electricity - Contract 1,13/06/2012,1237868,"3,761.68",Southern Electric,A030266,"4,514.01",752.33,,PD
North West Leicestershire District Council ,31UH,CULTYP,Leisure & Culture,Cultural Services Children & YoungPeople,Training,20/06/2012,1238117,"3,700.00",The Mighty Creatives,A039092,"3,700.00",0.00,,PD
North West Leicestershire District Council ,31UH,EES,Environmental Health,Environmental Services,Grants,13/06/2012,1237865,"3,640.72",Adaptions,A038668,"3,640.72",0.00,,PD
North West Leicestershire District Council ,31UH,HRAHRM,Housing Repairs,HRA Housing Repairs & Maintenance,Gas & Electricity - Boiler replacement,27/06/2012,1238553,"3,587.63",Lakers UK,A031787,"4,305.16",717.53,,PD
North West Leicestershire District Council ,31UH,HPLC,Leisure Centres,Hood Park Leisure Centre,Cleaning & Hygiene Services,06/06/2012,1237404,"3,580.00",Phs Group Ltd,A009237,"4,296.00",716.00,,PD
North West Leicestershire District Council ,31UH,EES,Environmental Health,Environmental Services,Plumbing and heating contractors,31/05/2012,1237286,"3,522.00",C V Lane & Son,A000922,"3,522.00",0.00,,PD
North West Leicestershire District Council ,31UH,CULTEV,Leisure & Culture,Cultural Services Arts & Events,Grants,20/06/2012,1238450,"3,500.00",Mantle Community Arts Limited,A001039,"3,500.00",0.00,,PD
North West Leicestershire District Council ,31UH,ESS,Street Management,Environment - Street Scene,Street Supplies - Street Furniture,20/06/2012,1237815,"3,412.00",Plantscape Ltd,A033650,"4,094.40",682.40,,PD
North West Leicestershire District Council ,31UH,EDC,Planning & Development,Environment - Development Control,Surveys - Valuation Office Agency,27/06/2012,1238683,"3,400.00",Valuation Office Agency,A036190,"4,080.00",680.00,,PD
North West Leicestershire District Council ,31UH,EES,Environmental Health,Environmental Services,Plumbing and Heating Services,27/06/2012,1238732,"3,360.00",Neil North & Associates Ltd,A031090,"3,360.00",0.00,,PD
North West Leicestershire District Council ,31UH,HLC,Leisure Centres,Hermitage Leisure Centre,IT - software services,20/06/2012,1238184,"3,282.14",Gladstone MRM Ltd,A024642,"3,938.57",656.43,,PD
North West Leicestershire District Council ,31UH,EES,Environmental Health,Environmental Services,Grants,13/06/2012,1237864,"3,282.09",Adaptions,A038668,"3,282.09",0.00,,PD
North West Leicestershire District Council ,31UH,HR,Corporate Director,Human Resources,Leasing - Vehicles,13/06/2012,1237890,"3,269.23",Arnold Clark Vehicle Management,A035549,"3,600.00",330.77,,PD
North West Leicestershire District Council ,31UH,LDLS,Legal & Democratic,Legal Services,Legal services - town planning,06/06/2012,1237527,"3,258.35",Marrons Consultancies Limited,A016315,"3,910.00",651.65,,PD
North West Leicestershire District Council ,31UH,HR,Corporate Director,Human Resources,Child care Vouchers,31/05/2012,1236994,"3,241.00",Premier Employer Solutions Limited,A038606,"3,241.00",0.00,,PD
North West Leicestershire District Council ,31UH,HR,Corporate Director,Human Resources,Charity Services - Childcare Vouchers,27/06/2012,1238144,"3,241.00",PES Limited,A035521,"3,241.00",0.00,,PD
North West Leicestershire District Council ,31UH,HPLC,Leisure Centres,Hood Park Leisure Centre,Leisure - Spares for Water Inflatables,06/06/2012,1237413,"3,195.00",Airquee Ltd,A028733,"3,834.00",639.00,,PD
North West Leicestershire District Council ,31UH,HRATS,Housing,Housing Tenancy Sustainment,Fuel - solid,20/06/2012,1238205,"3,192.69",Coal4Energy Ltd,A031928,"3,831.23",638.54,,PD
North West Leicestershire District Council ,31UH,ECP,Planning & Development,Environment Community Planning,Valuation Report,20/06/2012,1238225,"3,100.00",Valuation Office Agency,A034291,"3,720.00",620.00,,PD
North West Leicestershire District Council ,31UH,EES,Environmental Health,Environmental Services,Grant payment,13/06/2012,1237673,"3,023.00",Leicestershire County Council,A038469,"3,023.00",0.00,,PD
North West Leicestershire District Council ,31UH,HRAHRM,Housing Repairs,HRA Housing Repairs & Maintenance,Gas & Electricity - Boiler replacement,31/05/2012,1237102,"3,008.36",Lakers UK,A031787,"3,610.03",601.67,,PD
North West Leicestershire District Council ,31UH,ICT,Information Technology,ICT Services,Photocopiers and consumables,20/06/2012,1238210,"3,000.00",The Danwood Group Ltd,A001301,"3,600.00",600.00,,PD
North West Leicestershire District Council ,31UH,EDC,Planning & Development,Environment - Development Control,Consultancy Services,06/06/2012,1237368,"2,943.67",Stansgate Planning Consultants,A013765,"3,531.08",587.41,,PD
North West Leicestershire District Council ,31UH,HRAHRM,Housing Repairs,HRA Housing Repairs & Maintenance,Building - General Maintenance works - Minor framework,27/06/2012,1238633,"2,911.78",Herbert Baggaley Construction Limited,A036241,"3,494.14",582.36,,PD
North West Leicestershire District Council ,31UH,HRATS,Housing,Housing Tenancy Sustainment,Fuel - solid,20/06/2012,1238206,"2,858.31",Coal4Energy Ltd,A031928,"3,429.97",571.66,,PD
North West Leicestershire District Council ,31UH,LDLS,Legal & Democratic,Legal Services,Legal services,20/06/2012,1238042,"2,727.00",Bevan Brittan,A031366,"3,272.40",545.40,,PD
North West Leicestershire District Council ,31UH,HRAHRM,Housing Repairs,HRA Housing Repairs & Maintenance,Gas & Electricity - Boiler replacement,06/06/2012,1237504,"2,668.22",Lakers UK,A031787,"3,201.86",533.64,,PD
North West Leicestershire District Council ,31UH,HR,Corporate Director,Human Resources,Leasing - Vehicles,31/05/2012,1236914,"2,659.39",Arnold Clark Vehicle Management,A035549,"2,937.60",278.21,,PD
North West Leicestershire District Council ,31UH,HRAHRM,Housing Repairs,HRA Housing Repairs & Maintenance,Gas & Electricity - Boiler replacement,31/05/2012,1237097,"2,618.73",Lakers UK,A031787,"3,142.48",523.75,,PD
North West Leicestershire District Council ,31UH,HRATS,Housing,Housing Tenancy Sustainment,Fuel - solid,20/06/2012,1238207,"2,607.53",Coal4Energy Ltd,A031928,"3,129.04",521.51,,PD
North West Leicestershire District Council ,31UH,HRAHRM,Housing Repairs,HRA Housing Repairs & Maintenance,Gas & Electricity - Boiler replacement,31/05/2012,1237099,"2,587.38",Lakers UK,A031787,"3,104.86",517.48,,PD
North West Leicestershire District Council ,31UH,HRAHRM,Housing Repairs,HRA Housing Repairs & Maintenance,Gas & Electricity - Boiler replacement,06/06/2012,1237503,"2,546.43",Lakers UK,A031787,"3,055.72",509.29,,PD
North West Leicestershire District Council ,31UH,HLC,Leisure Centres,Hermitage Leisure Centre,Energy - Electricity - Contract 1,27/06/2012,1238499,"2,528.11",Southern Electric,A030266,"3,033.73",505.62,,PD
North West Leicestershire District Council ,31UH,ENOT,Street Management,Environment Transport,Tyre Supplier,20/06/2012,1238445,"2,505.10",Stapletons Tyre Service Ltd,A034248,"3,006.12",501.02,,PD
North West Leicestershire District Council ,31UH,HRAHRM,Housing Repairs,HRA Housing Repairs & Maintenance,Gas & Electricity - Boiler replacement,31/05/2012,1237103,"2,481.30",Lakers UK,A031787,"2,977.56",496.26,,PD
North West Leicestershire District Council ,31UH,ENOT,Street Management,Environment Transport,Water - Sewerage services,06/06/2012,1237387,"2,472.23",Severn Trent Water Limited,A001468,"2,472.23",0.00,,PD
North West Leicestershire District Council ,31UH,CULTYP,Leisure & Culture,Cultural Services Children & YoungPeople,Education,06/06/2012,1237321,"2,400.00",LCC Warren Hills Primary School,A028026,"2,400.00",0.00,,PD
North West Leicestershire District Council ,31UH,HRAHRM,Housing Repairs,HRA Housing Repairs & Maintenance,Gas & Electricity - Boiler replacement,31/05/2012,1237100,"2,400.00",Lakers UK,A031787,"2,880.00",480.00,,PD
North West Leicestershire District Council ,31UH,HRAHRM,Housing Repairs,HRA Housing Repairs & Maintenance,Gas & Electricity - Boiler replacement,31/05/2012,1237174,"2,400.00",Lakers UK,A031787,"2,880.00",480.00,,PD
North West Leicestershire District Council ,31UH,HRAHRM,Housing Repairs,HRA Housing Repairs & Maintenance,Gas & Electricity - Boiler replacement,27/06/2012,1238978,"2,400.00",Lakers UK,A031787,"2,880.00",480.00,,PD
North West Leicestershire District Council ,31UH,PROPFM,Property Services,Property Facilities Management,Building - General Maintenance works - Minor framework,31/05/2012,1237086,"2,350.00",Alf Wright Construction Limited,A036239,"2,820.00",470.00,,PD
North West Leicestershire District Council ,31UH,CP,Communications,Corporate - Communications,Advertising - Full page advert in B2B green newsletter,31/05/2012,1236826,"2,349.00",Local Lifestyle Limited,A037318,"2,818.80",469.80,,PD
North West Leicestershire District Council ,31UH,PROPFM,Property Services,Property Facilities Management,Security Systems - Fire Detection,27/06/2012,1238681,"2,311.45",TECSERV UK LIMITED,A028261,"2,773.74",462.29,,PD
North West Leicestershire District Council ,31UH,HRACS,Housing,HRA Customer Services,Building - General Maintenance works - Minor framework,06/06/2012,1236752,"2,281.08",Herbert Baggaley Construction Limited,A036241,"2,737.30",456.22,,PD
North West Leicestershire District Council ,31UH,ENOP,Street Management,Environment Parks,Engineering Services,20/06/2012,1238259,"2,240.00",Kovacs & Son Engineers,A000906,"2,688.00",448.00,,PD
North West Leicestershire District Council ,31UH,ICT,Information Technology,ICT Services,Photocopiers and consumables,27/06/2012,1238730,"2,234.75",Danwood Contract Rentals,A033719,"2,681.70",446.95,,PD
North West Leicestershire District Council ,31UH,LDLS,Legal & Democratic,Legal Services,Legal - Case Management System inc. associated training and services for installation,31/05/2012,1237223,"2,231.25",FWBS Limited,A037595,"2,677.50",446.25,,PD
North West Leicestershire District Council ,31UH,HRAHRM,Housing Repairs,HRA Housing Repairs & Maintenance,Gas & Electricity - Boiler replacement,27/06/2012,1238858,"2,211.81",Lakers UK,A031787,"2,654.17",442.36,,PD
North West Leicestershire District Council ,31UH,ENOWM,Street Management,Environment Waste Management,Waste Disposal - Recyclable containers,13/06/2012,1237833,"2,181.60",Straight Plc,A024906,"2,617.92",436.32,,PD
North West Leicestershire District Council ,31UH,HRAHRM,Housing Repairs,HRA Housing Repairs & Maintenance,Gas & Electricity - Boiler replacement,27/06/2012,1238556,"2,146.54",Lakers UK,A031787,"2,575.85",429.31,,PD
North West Leicestershire District Council ,31UH,HRAHRM,Housing Repairs,HRA Housing Repairs & Maintenance,Gas & Electricity - Boiler replacement,31/05/2012,1237172,"2,143.18",Lakers UK,A031787,"2,571.82",428.64,,PD
North West Leicestershire District Council ,31UH,HPLC,Leisure Centres,Hood Park Leisure Centre,Energy - Electricity - Contract 1,20/06/2012,1238231,"2,124.37",Southern Electric,A030266,"2,549.24",424.87,,PD
North West Leicestershire District Council ,31UH,HRAHRM,Housing Repairs,HRA Housing Repairs & Maintenance,Gas & Electricity - Boiler replacement,27/06/2012,1238979,"2,096.98",Lakers UK,A031787,"2,516.38",419.40,,PD
North West Leicestershire District Council ,31UH,HRAHRM,Housing Repairs,HRA Housing Repairs & Maintenance,Fuel servicing (Hsg Maintenance),31/05/2012,1237089,"2,089.84",Elite Sweep Service,A035675,"2,507.81",417.97,,PD
North West Leicestershire District Council ,31UH,HRAHRM,Housing Repairs,HRA Housing Repairs & Maintenance,Fuel servicing (Hsg Maintenance),27/06/2012,1238534,"2,089.84",Elite Sweep Service,A035675,"2,507.81",417.97,,PD
North West Leicestershire District Council ,31UH,HRAHRM,Housing Repairs,HRA Housing Repairs & Maintenance,Gas & Electricity - Boiler replacement,27/06/2012,1238859,"2,079.70",Lakers UK,A031787,"2,495.64",415.94,,PD
North West Leicestershire District Council ,31UH,HRAHRM,Housing Repairs,HRA Housing Repairs & Maintenance,Gas & Electricity - Boiler replacement,20/06/2012,1238397,"2,038.89",Lakers UK,A031787,"2,446.67",407.78,,PD
North West Leicestershire District Council ,31UH,PROPFM,Property Services,Property Facilities Management,Water - Sewerage services,06/06/2012,1237391,"2,022.09",Severn Trent Water Limited,A001468,"2,022.09",0.00,,PD
North West Leicestershire District Council ,31UH,HRAHRM,Housing Repairs,HRA Housing Repairs & Maintenance,Gas & Electricity - Boiler replacement,06/06/2012,1237509,"2,018.68",Lakers UK,A031787,"2,422.42",403.74,,PD
North West Leicestershire District Council ,31UH,EBC,Planning & Development,Building Control,Consultancy Fees ,27/06/2012,1238521,"2,009.00",Leicestershire County Council,A027423,"2,009.00",0.00,,PD
North West Leicestershire District Council ,31UH,HRAHRM,Housing Repairs,HRA Housing Repairs & Maintenance,Gas & Electricity - Boiler replacement,31/05/2012,1237176,"2,004.97",Lakers UK,A031787,"2,405.96",400.99,,PD
North West Leicestershire District Council ,31UH,HRAPBS,Housing,HRA Performance & Business Support,Subscriptions,31/05/2012,1236918,"2,000.00",ARCH,A038448,"2,400.00",400.00,,PD
North West Leicestershire District Council ,31UH,HRAHRM,Housing Repairs,HRA Housing Repairs & Maintenance,Gas & Electricity - Boiler replacement,27/06/2012,1238555,"1,993.19",Lakers UK,A031787,"2,391.83",398.64,,PD
North West Leicestershire District Council ,31UH,LDELC,Legal & Democratic,Electoral & Land Charges,Conference Training,27/06/2012,1238520,"1,968.50",The Association of Electoral Administrators Ltd,A033402,"2,358.50",390.00,,PD
North West Leicestershire District Council ,31UH,CULTIC,Leisure & Culture,Cultural Services TIC,Ticket Sales,27/06/2012,1238789,"1,948.86",AFFC,A030722,"1,948.86",0.00,,PD
North West Leicestershire District Council ,31UH,HRAHRM,Housing Repairs,HRA Housing Repairs & Maintenance,Gas & Electricity - Boiler replacement,06/06/2012,1237505,"1,935.54",Lakers UK,A031787,"2,322.65",387.11,,PD
North West Leicestershire District Council ,31UH,HRAHRM,Housing Repairs,HRA Housing Repairs & Maintenance,Gas & Electricity - Boiler replacement,27/06/2012,1238868,"1,910.29",Lakers UK,A031787,"2,292.35",382.06,,PD
North West Leicestershire District Council ,31UH,HRAHRM,Housing Repairs,HRA Housing Repairs & Maintenance,Gas & Electricity - Boiler replacement,31/05/2012,1237171,"1,893.23",Lakers UK,A031787,"2,271.88",378.65,,PD
North West Leicestershire District Council ,31UH,HRAHRM,Housing Repairs,HRA Housing Repairs & Maintenance,Gas & Electricity - Boiler replacement,06/06/2012,1237510,"1,878.64",Lakers UK,A031787,"2,254.37",375.73,,PD
North West Leicestershire District Council ,31UH,CULTYP,Leisure & Culture,Cultural Services Children & YoungPeople,Training,20/06/2012,1238118,"1,850.00",The Mighty Creatives,A039092,"1,850.00",0.00,,PD
North West Leicestershire District Council ,31UH,HLC,Leisure Centres,Hermitage Leisure Centre,Printing - Lot 3,20/06/2012,1238129,"1,850.00",Wyndeham Gait Limited,A037245,"1,850.00",0.00,,PD
North West Leicestershire District Council ,31UH,HRAHRM,Housing Repairs,HRA Housing Repairs & Maintenance,Waste - Tipping building,27/06/2012,1238528,"1,848.60",Ward Recycling,A035471,"2,218.32",369.72,,PD
North West Leicestershire District Council ,31UH,HPLC,Leisure Centres,Hood Park Leisure Centre,Water - Sewerage services,20/06/2012,1238230,"1,835.28",Severn Trent Water Limited,A001468,"1,835.28",0.00,,PD
North West Leicestershire District Council ,31UH,HRAHRM,Housing Repairs,HRA Housing Repairs & Maintenance,Gas & Electricity - Boiler replacement,20/06/2012,1238371,"1,826.89",Lakers UK,A031787,"2,192.27",365.38,,PD
North West Leicestershire District Council ,31UH,ICT,Information Technology,ICT Services,IT - Telecommunications and data services,31/05/2012,1236989,"1,824.58",Freedom Communications (UK) Ltd,A032826,"2,189.50",364.92,,PD
North West Leicestershire District Council ,31UH,ICT,Information Technology,ICT Services,IT - Telecommunications and data services,20/06/2012,1238064,"1,824.58",Freedom Communications (UK) Ltd,A032826,"2,189.50",364.92,,PD
North West Leicestershire District Council ,31UH,HLC,Leisure Centres,Hermitage Leisure Centre,IT - software services,31/05/2012,1236996,"1,765.00",Gladstone MRM Ltd,A024642,"2,118.00",353.00,,PD
North West Leicestershire District Council ,31UH,HRAHRM,Housing Repairs,HRA Housing Repairs & Maintenance,Gas & Electricity - Boiler replacement,31/05/2012,1237101,"1,755.27",Lakers UK,A031787,"2,106.32",351.05,,PD
North West Leicestershire District Council ,31UH,HRAHRM,Housing Repairs,HRA Housing Repairs & Maintenance,Gas & Electricity - Boiler replacement,27/06/2012,1238856,"1,738.25",Lakers UK,A031787,"2,085.90",347.65,,PD
North West Leicestershire District Council ,31UH,HLC,Leisure Centres,Hermitage Leisure Centre,Water - Sewerage services,20/06/2012,1238107,"1,734.75",Severn Trent Water Limited,A001468,"1,734.75",0.00,,PD
North West Leicestershire District Council ,31UH,NACN,Neighbourhoods & Communities,N & C Neighbourhoods,Grant payment,20/06/2012,1238451,"1,720.83",Age Concern Leicestershire and Rutland,A033349,"1,720.83",0.00,,PD
North West Leicestershire District Council ,31UH,NACCS,Neighbourhoods & Communities,N & C Community Safety,Grants,20/06/2012,1238114,"1,720.83",Age Concern Leicestershire & Rutland (Welfare services) ltd,A027552,"1,720.83",0.00,,PD
North West Leicestershire District Council ,31UH,NACCS,Neighbourhoods & Communities,N & C Community Safety,Education,31/05/2012,1237238,"1,650.00",LCC Warren Hills Primary School,A028026,"1,650.00",0.00,,PD
North West Leicestershire District Council ,31UH,ENOT,Street Management,Environment Transport,Waste - Baling wire manufacturers,20/06/2012,1238173,"1,600.00",DR Baling Wire Manufacturers Ltd,A032890,"1,920.00",320.00,,PD
North West Leicestershire District Council ,31UH,EES,Environmental Health,Environmental Services,Animals - Boarding Kennels,31/05/2012,1237073,"1,589.54",College Garth Boarding Kennels,A000385,"1,947.44",357.90,,PD
North West Leicestershire District Council ,31UH,ESS,Street Management,Environment - Street Scene,Pay & display machines - tickets,20/06/2012,1238439,"1,585.00",Nagels UK Limited,A035478,"1,902.00",317.00,,PD
North West Leicestershire District Council ,31UH,HPLC,Leisure Centres,Hood Park Leisure Centre,Lighting - Flood Lighting,20/06/2012,1238200,"1,561.80",Christy Lighting Ltd,A028616,"1,874.16",312.36,,PD
North West Leicestershire District Council ,31UH,HRAHRM,Housing Repairs,HRA Housing Repairs & Maintenance,Gas & Electricity - Boiler replacement,06/06/2012,1237511,"1,560.49",Lakers UK,A031787,"1,872.59",312.10,,PD
North West Leicestershire District Council ,31UH,HRAHRM,Housing Repairs,HRA Housing Repairs & Maintenance,Waste - Tipping building,31/05/2012,1237084,"1,554.72",Ward Recycling,A035471,"1,865.66",310.94,,PD
North West Leicestershire District Council ,31UH,ECCTV,Planning & Development,Environment - Town Centre/CCTV,Water - Sewerage services,20/06/2012,1238171,"1,542.22",Severn Trent Water Limited,A001468,"1,542.22",0.00,,PD
North West Leicestershire District Council ,31UH,EPP,Planning & Development,Environment Planning Policy,Web Design - Ashby website,31/05/2012,1236832,"1,541.40",Socius Limited,A031950,"1,849.68",308.28,,PD
North West Leicestershire District Council ,31UH,HRAHRM,Housing Repairs,HRA Housing Repairs & Maintenance,Lift repairs,27/06/2012,1238552,"1,515.99",Geze Uk Limited,A023130,"1,819.19",303.20,,PD
North West Leicestershire District Council ,31UH,HRAHRM,Housing Repairs,HRA Housing Repairs & Maintenance,Gas & Electricity - Boiler replacement,06/06/2012,1237506,"1,502.95",Lakers UK,A031787,"1,803.54",300.59,,PD
North West Leicestershire District Council ,31UH,ENOT,Street Management,Environment Transport,Small civils and plant hire,13/06/2012,1237605,"1,477.50",Cuckoo Gap Limited,A000438,"1,773.00",295.50,,PD
North West Leicestershire District Council ,31UH,ENOT,Street Management,Environment Transport,Road fund licences,20/06/2012,1238035,"1,410.00",Post Office Limited,A008559,"1,410.00",0.00,,PD
North West Leicestershire District Council ,31UH,HRAHRM,Housing Repairs,HRA Housing Repairs & Maintenance,Gas & Electricity - Boiler replacement,06/06/2012,1237465,"1,410.00",Lakers UK,A031787,"1,692.00",282.00,,PD
North West Leicestershire District Council ,31UH,HRAHRM,Housing Repairs,HRA Housing Repairs & Maintenance,Gas & Electricity - Boiler replacement,06/06/2012,1237508,"1,409.98",Lakers UK,A031787,"1,691.98",282.00,,PD
North West Leicestershire District Council ,31UH,ECCTV,Planning & Development,Environment - Town Centre/CCTV,Security Services - CCTV Maintenance,31/05/2012,1236764,"1,409.33",Quadrant Security Group Limited,A035493,"1,691.20",281.87,,PD
North West Leicestershire District Council ,31UH,ECCTV,Planning & Development,Environment - Town Centre/CCTV,Security Services - CCTV Maintenance,31/05/2012,1236763,"1,409.33",Quadrant Security Group Limited,A035493,"1,691.20",281.87,,PD
North West Leicestershire District Council ,31UH,ECCTV,Planning & Development,Environment - Town Centre/CCTV,Security Services - CCTV Maintenance,31/05/2012,1236762,"1,409.33",Quadrant Security Group Limited,A035493,"1,691.20",281.87,,PD
North West Leicestershire District Council ,31UH,ECCTV,Planning & Development,Environment - Town Centre/CCTV,Security Services - CCTV Maintenance,20/06/2012,1238274,"1,409.33",Quadrant Security Group Limited,A035493,"1,691.20",281.87,,PD
North West Leicestershire District Council ,31UH,LDLS,Legal & Democratic,Legal Services,Subscriptions - Accreditation - Lexcel Standard,13/06/2012,1237219,"1,396.00",EMQC Limited,A035982,"1,675.20",279.20,,PD
North West Leicestershire District Council ,31UH,ENOT,Street Management,Environment Transport,Vehicle Parts,20/06/2012,1238108,"1,375.04",Sherwood Truck and Van Limited,A035120,"1,650.05",275.01,,PD
North West Leicestershire District Council ,31UH,ENOT,Street Management,Environment Transport,Vehicle Parts,06/06/2012,1237388,"1,375.04",Sherwood Truck and Van Limited,A035120,"1,650.05",275.01,,PD
North West Leicestershire District Council ,31UH,ECP,Planning & Development,Environment Community Planning,Training,20/06/2012,1238226,"1,372.92",Hinckley & Bosworth Borough Council,A000770,"1,372.92",0.00,,PD
North West Leicestershire District Council ,31UH,HRAHRM,Housing Repairs,HRA Housing Repairs & Maintenance,Gas & Electricity - Boiler replacement,27/06/2012,1238554,"1,369.15",Lakers UK,A031787,"1,642.98",273.83,,PD
North West Leicestershire District Council ,31UH,HRAHRM,Housing Repairs,HRA Housing Repairs & Maintenance,Gas & Electricity - Boiler replacement,31/05/2012,1237182,"1,301.70",Lakers UK,A031787,"1,562.04",260.34,,PD
North West Leicestershire District Council ,31UH,EDC,Planning & Development,Environment - Development Control,Performing Artist,13/06/2012,1237607,"1,299.65",Planning Inquiry Administration Services,A038890,"1,299.65",0.00,,PD
North West Leicestershire District Council ,31UH,EXCH,Finance,Exchequer Services,Refund,27/06/2012,1238470,"1,285.09",Sec Uk Industrial Battery Ltd,A038461,"1,285.09",0.00,,PD
North West Leicestershire District Council ,31UH,HS,Housing Strategy,Community - Housing Strategy,Accommodation - Bed and Breakfast,31/05/2012,1237066,"1,265.00",The Cedars,A027796,"1,265.00",0.00,,PD
North West Leicestershire District Council ,31UH,HS,Housing Strategy,Community - Housing Strategy,Accommodation - Bed and Breakfast,31/05/2012,1237067,"1,260.00",The Cedars,A027796,"1,260.00",0.00,,PD
North West Leicestershire District Council ,31UH,EEHL,Environmental Health,Environmental Health & Licensing,Subscriptions,06/06/2012,1237227,"1,255.00",Association Of Port Health Authorities,A000103,"1,506.00",251.00,,PD
North West Leicestershire District Council ,31UH,HRAHRM,Housing Repairs,HRA Housing Repairs & Maintenance,Fuel servicing (Hsg Maintenance),31/05/2012,1237203,"1,204.94",Elite Sweep Service,A035675,"1,445.93",240.99,,PD
North West Leicestershire District Council ,31UH,HLC,Leisure Centres,Hermitage Leisure Centre,Maintenance fer,20/06/2012,1238100,"1,200.95",Esg Pool Ventilation Ltd,A000521,"1,441.14",240.19,,PD
North West Leicestershire District Council ,31UH,HS,Housing Strategy,Community - Housing Strategy,Housing - Tenant Matching Software Subscription,31/05/2012,1237232,"1,200.00",Housing Partners,A038507,"1,440.00",240.00,,PD
North West Leicestershire District Council ,31UH,HRAHRM,Housing Repairs,HRA Housing Repairs & Maintenance,Gas & Electricity - Boiler replacement,06/06/2012,1237507,"1,194.23",Lakers UK,A031787,"1,433.08",238.85,,PD
North West Leicestershire District Council ,31UH,ENOGT,Street Management,Environment General Technician,Small civils and plant hire,27/06/2012,1238516,"1,183.49",Cuckoo Gap Limited,A000438,"1,420.19",236.70,,PD
North West Leicestershire District Council ,31UH,HRAHRM,Housing Repairs,HRA Housing Repairs & Maintenance,Gas & Electricity - Boiler replacement,31/05/2012,1237173,"1,173.16",Lakers UK,A031787,"1,407.79",234.63,,PD
North West Leicestershire District Council ,31UH,HPLC,Leisure Centres,Hood Park Leisure Centre,Alarms - Service Contractor for Drown Alarms,06/06/2012,1236735,"1,170.00",Radio Protection Services Limited,A001356,"1,404.00",234.00,,PD
North West Leicestershire District Council ,31UH,ICT,Information Technology,ICT Services,Photocopiers and consumables,26/06/2012,1238697,"1,167.59",The Danwood Group Ltd,A001301,"1,401.11",233.52,,PD
North West Leicestershire District Council ,31UH,HR,Corporate Director,Human Resources,Consultancy,31/05/2012,1237006,"1,143.00",Libby Carter Limited,A033121,"1,335.00",192.00,,PD
North West Leicestershire District Council ,31UH,HRAHRM,Housing Repairs,HRA Housing Repairs & Maintenance,Gas & Electricity - Boiler replacement,27/06/2012,1238981,"1,134.76",Lakers UK,A031787,"1,361.71",226.95,,PD
North West Leicestershire District Council ,31UH,HRAHRM,Housing Repairs,HRA Housing Repairs & Maintenance,Gas & Electricity - Boiler replacement,27/06/2012,1238980,"1,127.79",Lakers UK,A031787,"1,353.35",225.56,,PD
North West Leicestershire District Council ,31UH,CS,Communications,Corporate - Customer Services,Postage - Franking machine leasing,31/05/2012,1237016,"1,120.07",Neopost Finance Limited,A031590,"1,344.08",224.01,,PD
North West Leicestershire District Council ,31UH,HRAHM,Housing,HRA Housing Management,Printing Services,31/05/2012,1236733,"1,099.00",Wilpbond Limited t/a Prontaprint,A025384,"1,099.00",0.00,,PD
North West Leicestershire District Council ,31UH,HLC,Leisure Centres,Hermitage Leisure Centre,Painters and Decorators,20/06/2012,1238202,"1,095.00",Mclean Decorators Ltd,A001069,"1,314.00",219.00,,PD
North West Leicestershire District Council ,31UH,HRAHRM,Housing Repairs,HRA Housing Repairs & Maintenance,Gas & Electricity - Boiler replacement,31/05/2012,1237104,"1,092.18",Lakers UK,A031787,"1,310.62",218.44,,PD
North West Leicestershire District Council ,31UH,EXCH,Finance,Exchequer Services,Debt Collection,13/06/2012,1237874,"1,082.19",Kings Armoured Security Services Ltd,A004468,"1,298.62",216.43,,PD
North West Leicestershire District Council ,31UH,HRAPBS,Housing,HRA Performance & Business Support,Subscription - Membership & Accreditation Status,27/06/2012,1238486,"1,080.00",Telecare Services Association,A034770,"1,296.00",216.00,,PD
North West Leicestershire District Council ,31UH,HRAHRM,Housing Repairs,HRA Housing Repairs & Maintenance,Gas & Electricity - Boiler replacement,27/06/2012,1238558,"1,066.62",Lakers UK,A031787,"1,279.94",213.32,,PD
North West Leicestershire District Council ,31UH,HRAHRM,Housing Repairs,HRA Housing Repairs & Maintenance,Training - Framework Provider,31/05/2012,1236131,"1,060.00",WDR,A036132,"1,272.00",212.00,,PD
North West Leicestershire District Council ,31UH,HLC,Leisure Centres,Hermitage Leisure Centre,Lift Maintenance Contract,20/06/2012,1238187,"1,040.81",Hytrac Lifts Limited,A036300,"1,248.97",208.16,,PD
North West Leicestershire District Council ,31UH,ENOP,Street Management,Environment Parks,Legionella Risk Assessments,20/06/2012,1238278,"1,030.00",Rentokil Initial UK Limited,A037013,"1,236.00",206.00,,PD
North West Leicestershire District Council ,31UH,HRAHRM,Housing Repairs,HRA Housing Repairs & Maintenance,Gas & Electricity - Boiler replacement,06/06/2012,1237442,"1,028.38",Lakers UK,A031787,"1,234.06",205.68,,PD
North West Leicestershire District Council ,31UH,HRAHM,Housing,HRA Housing Management,Energy Surveys,06/06/2012,1237390,"1,020.00",Energico,A039091,"1,224.00",204.00,,PD
North West Leicestershire District Council ,31UH,ICT,Information Technology,ICT Services,Telecommunications,31/05/2012,1237009,999.00,Cable & Wireless Worldwide,A038473,"1,198.80",199.80,,PD
North West Leicestershire District Council ,31UH,HLC,Leisure Centres,Hermitage Leisure Centre,IT - software services,20/06/2012,1238183,995.00,Gladstone MRM Ltd,A024642,"1,194.00",199.00,,PD
North West Leicestershire District Council ,31UH,ENOT,Street Management,Environment Transport,Flooring,13/06/2012,1237843,990.00,SAUNDERS OF STAPLETON LTD,A029076,"1,188.00",198.00,,PD
North West Leicestershire District Council ,31UH,PROPFM,Property Services,Property Facilities Management,Security services,20/06/2012,1238143,988.00,Spectra Security Limited,A002190,"1,185.60",197.60,,PD
North West Leicestershire District Council ,31UH,PROPFM,Property Services,Property Facilities Management,Building - General Maintenance works - Minor framework,31/05/2012,1236934,980.00,Alf Wright Construction Limited,A036239,"1,176.00",196.00,,PD
North West Leicestershire District Council ,31UH,HRAHRM,Housing Repairs,HRA Housing Repairs & Maintenance,Gas & Electricity - Boiler replacement,27/06/2012,1238861,972.84,Lakers UK,A031787,"1,167.41",194.57,,PD
North West Leicestershire District Council ,31UH,ECCTV,Planning & Development,Environment - Town Centre/CCTV,Energy - Electricity - Contract 1,27/06/2012,1238727,962.84,Southern Electric,A030266,"1,155.40",192.56,,PD
North West Leicestershire District Council ,31UH,LDCE,Legal & Democratic,Civic Expenses,Training - Scanning equipment ,13/06/2012,1237823,950.00,IDOX PLC,A013140,"1,140.00",190.00,,PD
North West Leicestershire District Council ,31UH,HRAPBS,Housing,HRA Performance & Business Support,"ICT - Software, Maintenance and Licenses for IBS Housing",20/06/2012,1238059,950.00,Capita Business Services Ltd,A002968,"1,140.00",190.00,,PD
North West Leicestershire District Council ,31UH,ICT,Information Technology,ICT Services,Photocopiers and consumables,31/05/2012,1237025,938.71,Danwood Contract Rentals,A033719,"1,126.45",187.74,,PD
North West Leicestershire District Council ,31UH,LDLS,Legal & Democratic,Legal Services,Legal - Case Management System inc. associated training and services for installation,13/06/2012,1237221,925.00,FWBS Limited,A037595,"1,110.00",185.00,,PD
North West Leicestershire District Council ,31UH,PROPCL,Property Services,Property Commercial Lettings,IT - Telephone and computing,13/06/2012,1237870,917.96,British Telecommunications Plc,A000233,"1,101.55",183.59,,PD
North West Leicestershire District Council ,31UH,EXCH,Finance,Exchequer Services,IT - software services,06/06/2012,1237612,907.45,Selima Limited,A010859,"1,088.94",181.49,,PD
North West Leicestershire District Council ,31UH,HRAHRM,Housing Repairs,HRA Housing Repairs & Maintenance,Gas & Electricity - Boiler replacement,06/06/2012,1237500,906.92,Lakers UK,A031787,"1,088.30",181.38,,PD
North West Leicestershire District Council ,31UH,CS,Communications,Corporate - Customer Services,Mail services,27/06/2012,1238852,900.00,Royal Mail Group Plc,A001418,900.00,0.00,,PD
North West Leicestershire District Council ,31UH,HRAHRM,Housing Repairs,HRA Housing Repairs & Maintenance,Housing- Digital Aerials,20/06/2012,1238368,900.00,DAS Aerial Communications Limited,A038240,"1,080.00",180.00,,PD
North West Leicestershire District Council ,31UH,ENOP,Street Management,Environment Parks,Grounds Maintenance - Landscaping,13/06/2012,1237844,900.00,Manor Landscapes,A035186,900.00,0.00,,PD
North West Leicestershire District Council ,31UH,LCM,Leisure & Culture,Leisure & Cult Mangt,fund payment,06/06/2012,1237370,895.00,Coalville Amateur Boxing Club,A038962,895.00,0.00,,PD
North West Leicestershire District Council ,31UH,HRAHRM,Housing Repairs,HRA Housing Repairs & Maintenance,Gas & Electricity - Boiler replacement,20/06/2012,1238376,892.38,Lakers UK,A031787,"1,070.86",178.48,,PD
North West Leicestershire District Council ,31UH,ENOP,Street Management,Environment Parks,Horticulture - Plants,20/06/2012,1238248,884.27,Crosby's,A032105,"1,061.12",176.85,,PD
North West Leicestershire District Council ,31UH,CULTEV,Leisure & Culture,Cultural Services Arts & Events,Events - Toilets for Picnic in the Park,06/06/2012,1237359,875.00,UKLoos.com,A036990,"1,050.00",175.00,,PD
North West Leicestershire District Council ,31UH,HRAHRM,Housing Repairs,HRA Housing Repairs & Maintenance,Fuel servicing (Hsg Maintenance),31/05/2012,1237204,865.92,Elite Sweep Service,A035675,"1,039.10",173.18,,PD
North West Leicestershire District Council ,31UH,PROPFM,Property Services,Property Facilities Management,Building - General Maintenance works - Minor framework,31/05/2012,1236935,860.00,Alf Wright Construction Limited,A036239,"1,032.00",172.00,,PD
North West Leicestershire District Council ,31UH,CULTEV,Leisure & Culture,Cultural Services Arts & Events,Leisure - Agency for street entertainment and performers for events,06/06/2012,1237358,860.00,Fools Paradise,A037317,"1,032.00",172.00,,PD
North West Leicestershire District Council ,31UH,ENVDS,Environment Directorate,Environment - Directorate Support,Subscriptions,13/06/2012,1237220,850.30,Local Government Association,A002189,"1,020.36",170.06,,PD
North West Leicestershire District Council ,31UH,HR,Corporate Director,Human Resources,Interim management,13/06/2012,1237590,840.40,BJD Associates Ltd,A034045,"1,008.48",168.08,,PD
North West Leicestershire District Council ,31UH,HLC,Leisure Centres,Hermitage Leisure Centre,Claim,20/06/2012,1238036,833.34,Measham Leisure Centre,A027454,"1,000.00",166.66,,PD
North West Leicestershire District Council ,31UH,ICT,Information Technology,ICT Services,Photocopiers and consumables,20/06/2012,1238263,813.93,Danwood Contract Rentals,A033719,976.72,162.79,,PD
North West Leicestershire District Council ,31UH,ICT,Information Technology,ICT Services,IT - Communications,31/05/2012,1237315,812.85,Barron Mccann Technology Limited,A000146,975.42,162.57,,PD
North West Leicestershire District Council ,31UH,ICT,Information Technology,ICT Services,Photocopiers and consumables,26/06/2012,1238694,799.93,The Danwood Group Ltd,A001301,959.92,159.99,,PD
North West Leicestershire District Council ,31UH,EDC,Planning & Development,Environment - Development Control,Advertising Agency,06/06/2012,1237595,797.37,Euro RSCG Riley,A001395,956.69,159.32,,PD
North West Leicestershire District Council ,31UH,HRAHRM,Housing Repairs,HRA Housing Repairs & Maintenance,Gas & Electricity - Boiler replacement,06/06/2012,1237452,784.74,Lakers UK,A031787,941.69,156.95,,PD
North West Leicestershire District Council ,31UH,LDELC,Legal & Democratic,Electoral & Land Charges,Books - Legal,27/06/2012,1238751,784.00,LexisNexis UK,A006155,784.00,0.00,,PD
North West Leicestershire District Council ,31UH,ENOWM,Street Management,Environment Waste Management,Waste Management,13/06/2012,1237629,781.21,ESE Limited,A001253,937.45,156.24,,PD
North West Leicestershire District Council ,31UH,EXCH,Finance,Exchequer Services,Advertising Agency,06/06/2012,1237389,777.56,Euro RSCG Riley,A001395,932.91,155.35,,PD
North West Leicestershire District Council ,31UH,HRAHRM,Housing Repairs,HRA Housing Repairs & Maintenance,Electricity - Supply for contract 4,31/05/2012,1237081,754.64,British Gas Business,A034733,905.57,150.93,,PD
North West Leicestershire District Council ,31UH,HRAHM,Housing,HRA Housing Management,De Montfort Housing Society,20/06/2012,1238319,750.00,Voluntary Action Leicestershire,A038706,750.00,0.00,,PD
North West Leicestershire District Council ,31UH,ENOT,Street Management,Environment Transport,Bags - Polythene bags manufacturer,31/05/2012,1237054,749.70,BPI Recycled Products,A017624,899.64,149.94,,PD
North West Leicestershire District Council ,31UH,HRAHRM,Housing Repairs,HRA Housing Repairs & Maintenance,Gas & Electricity - Gas installation ,27/06/2012,1238634,744.33,British Gas Trading Limited,A026237,893.20,148.87,,PD
North West Leicestershire District Council ,31UH,HRAHRM,Housing Repairs,HRA Housing Repairs & Maintenance,Gas & Electricity - Gas installation ,27/06/2012,1238679,744.33,British Gas Trading Limited,A026237,893.20,148.87,,PD
North West Leicestershire District Council ,31UH,HRAHRM,Housing Repairs,HRA Housing Repairs & Maintenance,Gas & Electricity - Boiler replacement,27/06/2012,1238891,717.87,Lakers UK,A031787,861.44,143.57,,PD
North West Leicestershire District Council ,31UH,PROPCL,Property Services,Property Commercial Lettings,Building - General Maintenance works - Minor framework,13/06/2012,1237052,716.94,Alf Wright Construction Limited,A036239,860.33,143.39,,PD
North West Leicestershire District Council ,31UH,HRAHM,Housing,HRA Housing Management,Training - events & publications,20/06/2012,1237820,714.00,Chartered Institute Of Housing,A000329,856.80,142.80,,PD
North West Leicestershire District Council ,31UH,ENOT,Street Management,Environment Transport,Vehicle Parts,27/06/2012,1238442,705.00,Dennis Eagle Limited,A000522,705.00,0.00,,PD
North West Leicestershire District Council ,31UH,ENOT,Street Management,Environment Transport,Vehicle Parts,27/06/2012,1238443,705.00,Dennis Eagle Limited,A000522,705.00,0.00,,PD
North West Leicestershire District Council ,31UH,ENOWM,Street Management,Environment Waste Management,Advertising Agency,31/05/2012,1237078,702.55,Euro RSCG Riley,A001395,842.91,140.36,,PD
North West Leicestershire District Council ,31UH,HRAHRM,Housing Repairs,HRA Housing Repairs & Maintenance,Utilities ,31/05/2012,1237082,683.86,British Gas Business,A035181,820.63,136.77,,PD
North West Leicestershire District Council ,31UH,HRAHRM,Housing Repairs,HRA Housing Repairs & Maintenance,Gas & Electricity - Boiler replacement,27/06/2012,1238986,673.19,Lakers UK,A031787,807.83,134.64,,PD
North West Leicestershire District Council ,31UH,HRAHRM,Housing Repairs,HRA Housing Repairs & Maintenance,Gas & Electricity - Boiler replacement,31/05/2012,1237164,663.66,Lakers UK,A031787,796.39,132.73,,PD
North West Leicestershire District Council ,31UH,HLC,Leisure Centres,Hermitage Leisure Centre,Catalogue stocks,13/06/2012,1237778,662.00,ESPO,A000958,794.40,132.40,,PD
North West Leicestershire District Council ,31UH,HR,Corporate Director,Human Resources,Criminal Records Checks,13/06/2012,1238003,660.00,Criminal Records Bureau,A027625,660.00,0.00,,PD
North West Leicestershire District Council ,31UH,HRAHRM,Housing Repairs,HRA Housing Repairs & Maintenance,Gas & Electricity - Boiler replacement,13/06/2012,1237747,655.67,Lakers UK,A031787,786.80,131.13,,PD
North West Leicestershire District Council ,31UH,ENOT,Street Management,Environment Transport,Vehicle Repairs,20/06/2012,1238078,652.61,Lee Wells Autobodies Ltd,A031849,783.13,130.52,,PD
North West Leicestershire District Council ,31UH,HRAHRM,Housing Repairs,HRA Housing Repairs & Maintenance,Gas & Electricity - Boiler replacement,20/06/2012,1238374,647.98,Lakers UK,A031787,777.58,129.60,,PD
North West Leicestershire District Council ,31UH,ENOT,Street Management,Environment Transport,Fuel ,06/06/2012,1237348,645.90,Pace Petroleum Ltd,A034942,678.20,32.30,,PD
North West Leicestershire District Council ,31UH,HPLC,Leisure Centres,Hood Park Leisure Centre,Leisure - Swimwear and accessories,06/06/2012,1237411,645.30,Zoggs International Ltd,A001833,774.36,129.06,,PD
North West Leicestershire District Council ,31UH,HRAPBS,Housing,HRA Performance & Business Support,Wheelie bin cleaning,06/06/2012,1237338,642.50,A J Contracts,A034116,642.50,0.00,,PD
North West Leicestershire District Council ,31UH,HRAHRM,Housing Repairs,HRA Housing Repairs & Maintenance,Fuel servicing (Hsg Maintenance),27/06/2012,1238630,636.46,Elite Sweep Service,A035675,763.75,127.29,,PD
North West Leicestershire District Council ,31UH,HPLC,Leisure Centres,Hood Park Leisure Centre,Leisure Equipment,06/06/2012,1237416,627.10,J P Lennard Ltd,A000969,752.52,125.42,,PD
North West Leicestershire District Council ,31UH,HRAHM,Housing,HRA Housing Management,Membership fee,31/05/2012,1237040,625.00,The East Midlands TP Forum,A014371,625.00,0.00,,PD
North West Leicestershire District Council ,31UH,ICT,Information Technology,ICT Services,IT - Equipment and Services,27/06/2012,1238536,622.00,Viglen Limited,A036738,746.40,124.40,,PD
North West Leicestershire District Council ,31UH,EXCH,Finance,Exchequer Services,Land Registry,27/06/2012,1239013,620.00,H M Land Registry,A000713,620.00,0.00,,PD
North West Leicestershire District Council ,31UH,HLC,Leisure Centres,Hermitage Leisure Centre,Painters and Decorators,31/05/2012,1236955,620.00,Mclean Decorators Ltd,A001069,744.00,124.00,,PD
North West Leicestershire District Council ,31UH,HRAHRM,Housing Repairs,HRA Housing Repairs & Maintenance,Gas & Electricity - Boiler replacement,27/06/2012,1238667,608.16,Lakers UK,A031787,729.79,121.63,,PD
North West Leicestershire District Council ,31UH,ICT,Information Technology,ICT Services,Printing - Part of Danwood,31/05/2012,1236923,604.65,Danwood Finance,A036577,725.58,120.93,,PD
North West Leicestershire District Council ,31UH,ENOT,Street Management,Environment Transport,Vehicle Repairs,27/06/2012,1238761,603.08,Lee Wells Autobodies Ltd,A031849,723.70,120.62,,PD
North West Leicestershire District Council ,31UH,HRAOPS,Housing,HRA Older Persons Service,Furniture,20/06/2012,1238130,602.13,Online Ergonomics Ltd,A034750,722.56,120.43,,PD
North West Leicestershire District Council ,31UH,HRAHRM,Housing Repairs,HRA Housing Repairs & Maintenance,Housing- Digital Aerials,20/06/2012,1238367,600.00,DAS Aerial Communications Limited,A038240,720.00,120.00,,PD
North West Leicestershire District Council ,31UH,HRAHRM,Housing Repairs,HRA Housing Repairs & Maintenance,Gas & Electricity - Boiler replacement,27/06/2012,1238987,597.15,Lakers UK,A031787,716.58,119.43,,PD
North West Leicestershire District Council ,31UH,HLC,Leisure Centres,Hermitage Leisure Centre,Water - Sewerage services,20/06/2012,1238033,597.00,Severn Trent Water Limited,A001468,597.00,0.00,,PD
North West Leicestershire District Council ,31UH,HRAHRM,Housing Repairs,HRA Housing Repairs & Maintenance,Waste - Tipping building,27/06/2012,1238530,590.92,Ward Recycling,A035471,709.10,118.18,,PD
North West Leicestershire District Council ,31UH,NACN,Neighbourhoods & Communities,N & C Neighbourhoods,Event,20/06/2012,1238452,590.00,Ashby de la Zouch Partnership,A037230,590.00,0.00,,PD
North West Leicestershire District Council ,31UH,HPLC,Leisure Centres,Hood Park Leisure Centre,Water - Treatment,31/05/2012,1236964,585.91,Biolab Uk Limited,A007793,703.09,117.18,,PD
North West Leicestershire District Council ,31UH,PROPCL,Property Services,Property Commercial Lettings,Water - Sewerage services,20/06/2012,1238287,583.72,Severn Trent Water Limited,A001468,583.72,0.00,,PD
North West Leicestershire District Council ,31UH,HPLC,Leisure Centres,Hood Park Leisure Centre,Telecommunication - Line Rental,01/08/2012,1237623,580.83,Virgin Media Business,A035373,697.00,116.17,,PD
North West Leicestershire District Council ,31UH,HRAHRM,Housing Repairs,HRA Housing Repairs & Maintenance,Gas & Electricity - Boiler replacement,31/05/2012,1237201,575.00,Lakers UK,A031787,690.00,115.00,,PD
North West Leicestershire District Council ,31UH,HRAHM,Housing,HRA Housing Management,Energy - Electricity - Contract 1,06/06/2012,1237543,572.48,Southern Electric,A030266,686.97,114.49,,PD
North West Leicestershire District Council ,31UH,ECCTV,Planning & Development,Environment - Town Centre/CCTV,Electricity - Supply for contract 4,27/06/2012,1238793,569.50,British Gas Business,A034733,683.40,113.90,,PD
North West Leicestershire District Council ,31UH,ICT,Information Technology,ICT Services,IT - software services,13/06/2012,1237344,556.83,Phoenix Software Limited,A001298,668.20,111.37,,PD
North West Leicestershire District Council ,31UH,PROPFM,Property Services,Property Facilities Management,Air Conditioning Systems,31/05/2012,1237045,556.00,Electrum Services Limited,A035362,667.20,111.20,,PD
North West Leicestershire District Council ,31UH,HR,Corporate Director,Human Resources,Professional licence ,31/05/2012,1237316,550.00,Reed Business Information Ltd,A030726,660.00,110.00,,PD
North West Leicestershire District Council ,31UH,HRAHRM,Housing Repairs,HRA Housing Repairs & Maintenance,Gas & Electricity - Boiler replacement,31/05/2012,1237092,550.00,Lakers UK,A031787,660.00,110.00,,PD
North West Leicestershire District Council ,31UH,ENOP,Street Management,Environment Parks,Building Supplies - Power tool sales,20/06/2012,1238318,548.53,Terratruck Distribution Services Ltd,A001648,658.24,109.71,,PD
North West Leicestershire District Council ,31UH,ENOT,Street Management,Environment Transport,Vehicle Services - Gritter Maintenance,13/06/2012,1237651,542.14,Aebi Schmidt Uk Limited,A017053,650.57,108.43,,PD
North West Leicestershire District Council ,31UH,HRAHRM,Housing Repairs,HRA Housing Repairs & Maintenance,Catalogue stocks,06/06/2012,1237357,540.00,ESPO,A000958,648.00,108.00,,PD
North West Leicestershire District Council ,31UH,EPP,Planning & Development,Environment Planning Policy,Web Design - Ashby website,13/06/2012,1237827,530.00,Socius Limited,A031950,636.00,106.00,,PD
North West Leicestershire District Council ,31UH,ENOT,Street Management,Environment Transport,Security Systems - Fire Detection,27/06/2012,1238739,529.06,TECSERV UK LIMITED,A028261,634.87,105.81,,PD
North West Leicestershire District Council ,31UH,HLBC,Leisure Centres,Hermitage Bar & Catering,Catering Supplies - Confectionery.,20/06/2012,1238110,524.66,Palmer Harvey Mclane Ltd,A001264,617.89,93.23,,PD
North West Leicestershire District Council ,31UH,HPBC,Leisure Centres,Hood Park Bar and Catering,Catering Supplies - Confectionery.,13/06/2012,1237626,524.38,Palmer Harvey Mclane Ltd,A001264,626.56,102.18,,PD
North West Leicestershire District Council ,31UH,HRAHRM,Housing Repairs,HRA Housing Repairs & Maintenance,Gas & Electricity - Boiler replacement,06/06/2012,1237473,524.08,Lakers UK,A031787,628.90,104.82,,PD
North West Leicestershire District Council ,31UH,HPBC,Leisure Centres,Hood Park Bar and Catering,Catering Supplies - Confectionery.,20/06/2012,1238216,522.66,Palmer Harvey Mclane Ltd,A001264,622.34,99.68,,PD
North West Leicestershire District Council ,31UH,ECCTV,Planning & Development,Environment - Town Centre/CCTV,Water - Sewerage services,06/06/2012,1237384,519.59,Severn Trent Water Limited,A001468,519.59,0.00,,PD
North West Leicestershire District Council ,31UH,ICT,Information Technology,ICT Services,Security Systems - Fire Detection,27/06/2012,1238489,518.21,TECSERV UK LIMITED,A028261,621.85,103.64,,PD
North West Leicestershire District Council ,31UH,PROPCL,Property Services,Property Commercial Lettings,Rental/Maintenance charges,13/06/2012,1237672,516.05,Pitney Bowes Finance Plc,A032630,619.26,103.21,,PD
North West Leicestershire District Council ,31UH,CS,Communications,Corporate - Customer Services,Catalogue stocks,20/06/2012,1237757,515.00,ESPO,A000958,618.00,103.00,,PD
North West Leicestershire District Council ,31UH,ENOP,Street Management,Environment Parks,Parks - Precast Concrete Posts and Fittings,20/06/2012,1238058,512.24,Grangewood Fencing Supplies Limited,A013933,614.69,102.45,,PD
North West Leicestershire District Council ,31UH,CDCC,Leisure Centres,Castle Donington Community College,Portable accommodation,20/06/2012,1238090,509.26,Elliott Group Limited,A005413,611.11,101.85,,PD
North West Leicestershire District Council ,31UH,HRAHRM,Housing Repairs,HRA Housing Repairs & Maintenance,Fuel servicing (Hsg Maintenance),27/06/2012,1238632,506.20,Elite Sweep Service,A035675,607.44,101.24,,PD
North West Leicestershire District Council ,31UH,HRAHM,Housing,HRA Housing Management,Grant,13/06/2012,1237684,500.00,Linford & Verdon Tenants and,A011717,500.00,0.00,,PD
North West Leicestershire District Council ,31UH,HRAHM,Housing,HRA Housing Management,Grant payment,13/06/2012,1237683,500.00,Willesley Estate TARA,A035881,500.00,0.00,,PD
North West Leicestershire District Council ,31UH,HRAPBS,Housing,HRA Performance & Business Support,Grant payment,27/06/2012,1238476,500.00,Willesley Estate TARA,A035881,500.00,0.00,,PD
North West Leicestershire District Council ,31UH,ENOT,Street Management,Environment Transport,Small civils and plant hire,06/06/2012,1237613,500.00,Cuckoo Gap Limited,A000438,600.00,100.00,,PD
North West Leicestershire District Council ,31UH,HLC,Leisure Centres,Hermitage Leisure Centre,Entertainment,06/06/2012,1237397,500.00,Vocals Entertainment Ltd,A033748,500.00,0.00,,PD
North West Leicestershire District Council ,31UH,HLC,Leisure Centres,Hermitage Leisure Centre,Training - First Aid courses,06/06/2012,1237421,500.00,First Aid International Limited,A034480,600.00,100.00,,PD
North West Leicestershire District Council ,31UH,ECP,Planning & Development,Environment Community Planning,Workshops,27/06/2012,1238799,500.00,Leicsckegworthcpsch,A035975,500.00,0.00
,,,,,,,,"1,057,771.64",,
